bitfinex-derivatives/quotes_BTCF0:USTF0_20240917
["timestamp","ask_amount","ask_price","bid_price","bid_amount"]
[1726580224331,0.3608,59261.0,59260.0,0.084369]
[1726580224535,0.3608,59261.0,59258.0,0.01575157]
[1726580224536,0.9516,59261.0,59258.0,0.01575157]
[1726580224735,0.0004,59259.0,59251.0,0.00253153]
[1726580224944,0.0004,59259.0,59258.0,0.084372]
[1726580225447,0.0004,59259.0,59251.0,0.01850049]
[1726580225633,0.3612,59252.0,59251.0,0.10288249]
[1726580226337,0.0004,59252.0,59251.0,0.10288249]
[1726580226841,0.5912,59252.0,59243.0,0.084393]
[1726580227040,0.0004,59244.0,59243.0,0.084393]
[1726580227944,0.084396,59241.0,59231.0,0.08441]
[1726580228146,0.314796,59241.0,59236.0,0.084403]
[1726580228352,0.0004,59241.0,59233.0,0.01577608]
[1726580228648,0.0004,59241.0,59240.0,0.08692995]
[1726580229739,0.0004,59241.0,59240.0,1.19532995]
[1726580229944,0.0004,59241.0,59240.0,0.08892995]
[1726580230538,0.092796,59241.0,59240.0,0.01937416]
[1726580230731,0.092796,59241.0,59240.0,0.00353195]
[1726580230732,0.322796,59241.0,59240.0,0.00353195]
[1726580231131,0.322796,59241.0,59230.0,0.00253247]
[1726580231132,0.084411,59231.0,59230.0,0.00253247]
[1726580231348,0.445611,59231.0,59230.0,0.00253247]
[1726580231640,0.084424,59222.0,59220.0,0.08695748]
[1726580231842,1.036411,59231.0,59220.0,0.08695748]
[1726580231843,0.23,59225.0,59220.0,0.00253248]
[1726580232037,0.084413,59230.0,59224.0,0.0004]
[1726580232234,0.3608,59225.0,59224.0,0.0004]
[1726580232429,0.3608,59225.0,59224.0,0.084821]
[1726580232630,0.3608,59231.0,59224.0,0.0004]
[1726580232847,0.3608,59231.0,59230.0,0.084812]
[1726580233037,0.445211,59231.0,59230.0,0.0004]
[1726580233243,0.3608,59231.0,59230.0,0.0004]
[1726580234139,0.445211,59231.0,59230.0,0.0004]
[1726580234339,0.448211,59231.0,59230.0,0.0004]
[1726580235442,0.3638,59231.0,59230.0,0.084812]
[1726580235745,0.003,59231.0,59230.0,0.084812]
[1726580235945,0.3608,59236.0,59230.0,1.191292]
[1726580236147,0.3608,59240.0,59235.0,0.0004]
[1726580236347,0.3608,59240.0,59239.0,0.084799]
[1726580236540,0.3608,59240.0,59239.0,0.084399]
[1726580237145,0.3608,59240.0,59235.0,0.0004]
[1726580237352,0.084803,59236.0,59235.0,0.0014]
[1726580238251,0.169206,59236.0,59235.0,0.0004]
[1726580238438,0.168812,59234.0,59233.0,0.00253238]
[1726580238642,0.530012,59234.0,59233.0,0.00253238]
[1726580238953,0.530012,59234.0,59220.0,0.00253248]
[1726580238954,0.084419,59225.0,59220.0,0.00253248]
[1726580239156,0.084419,59225.0,59224.0,0.084821]
[1726580239157,0.3612,59225.0,59224.0,0.084821]
[1726580239456,0.3612,59225.0,59224.0,0.084421]
[1726580239753,0.445619,59225.0,59224.0,0.084421]
[1726580239946,0.3612,59225.0,59220.0,0.08695848]
[1726580240146,0.084825,59221.0,59220.0,0.08695848]
[1726580240347,0.0004,59221.0,59220.0,0.08695848]
[1726580243054,0.0034,59221.0,59220.0,0.08695848]
[1726580243551,0.0014,59221.0,59220.0,0.08695848]
[1726580244141,0.0034,59221.0,59220.0,0.08695848]
[1726580245055,0.0024,59221.0,59220.0,0.08695848]
[1726580246354,0.0024,59221.0,59220.0,0.00253248]
[1726580246355,0.40125,59221.0,59220.0,0.00253248]
[1726580246552,0.316825,59221.0,59220.0,0.00253248]
[1726580246755,0.317825,59221.0,59220.0,0.00253248]
[1726580247355,0.314825,59221.0,59220.0,0.00253248]
[1726580247546,0.315825,59221.0,59220.0,0.00253248]
[1726580248053,0.314825,59221.0,59220.0,0.00753248]
[1726580248757,0.39925,59221.0,59220.0,0.00753248]
[1726580248982,0.39925,59221.0,59211.0,0.084439]
[1726580248983,0.08443,59217.0,59211.0,0.084439]
[1726580249153,0.0004,59212.0,59211.0,0.084439]
[1726580249353,0.445638,59212.0,59211.0,0.084439]
[1726580249746,0.3612,59212.0,59211.0,0.09997145]
[1726580249947,0.0004,59212.0,59211.0,0.09997145]
[1726580250147,0.3612,59212.0,59211.0,0.09997145]
[1726580251055,0.3652,59212.0,59211.0,0.09997145]
[1726580251759,0.449638,59212.0,59211.0,0.01553245]
[1726580251950,0.084439,59211.0,59210.0,0.08444]
[1726580252147,0.084839,59211.0,59210.0,0.08444]
[1726580252550,0.084442,59209.0,59208.0,0.01801722]
[1726580252861,0.084442,59209.0,59199.0,0.00253352]
[1726580252862,0.084443,59208.0,59199.0,0.00253352]
[1726580253062,0.445255,59200.0,59199.0,0.00253352]
[1726580253648,0.52971,59200.0,59199.0,0.00253352]
[1726580254051,0.52971,59200.0,59195.0,0.02117739]
[1726580254052,0.16892,59196.0,59195.0,0.02117739]
[1726580254257,0.76012,59196.0,59195.0,0.0052]
[1726580254557,0.76012,59196.0,59175.0,0.0084]
[1726580254558,1.698,59196.0,59175.0,0.0084]
[1726580254760,0.3616,59176.0,59174.0,0.0025349]
[1726580254959,0.2308,59175.0,59174.0,0.0025349]
[1726580255159,0.23,59175.0,59174.0,0.0025349]
[1726580255464,0.31449,59175.0,59174.0,0.0025349]
[1726580256360,0.23,59175.0,59174.0,0.0025349]
[1726580256560,0.3616,59176.0,59175.0,0.08449]
[1726580256965,0.5916,59176.0,59174.0,0.0025349]
[1726580257168,0.08529,59175.0,59174.0,0.0025349]
[1726580257355,0.50776,59175.0,59149.0,0.3608]
[1726580257556,0.50776,59175.0,59155.0,0.01612518]
[1726580257557,0.0008,59156.0,59155.0,0.01612518]
[1726580257757,0.0008,59156.0,59155.0,0.084518]
[1726580259066,0.086318,59156.0,59155.0,0.005]
[1726580259264,0.086318,59156.0,59155.0,0.02102746]
[1726580260062,0.086318,59156.0,59137.0,0.3608]
[1726580260063,0.23,59151.0,59137.0,0.3608]
[1726580260369,0.3608,59142.0,59141.0,0.084539]
[1726580260665,0.084542,59139.0,59138.0,0.00253606]
[1726580260862,0.3548,59142.0,59138.0,0.00253606]
[1726580261065,0.3548,59142.0,59138.0,0.08707906]
[1726580261066,0.0008,59139.0,59138.0,0.08707906]
[1726580262162,0.0008,59139.0,59138.0,0.09307906]
[1726580262866,0.0008,59139.0,59138.0,1.20035906]
[1726580263868,0.3608,59149.0,59138.0,1.19435906]
[1726580264071,0.3608,59149.0,59148.0,0.084529]
[1726580265271,0.3618,59149.0,59148.0,0.084529]
[1726580266967,0.3618,59149.0,59148.0,0.09991345]
[1726580267564,0.3608,59149.0,59148.0,0.10091345]
[1726580267955,0.3668,59149.0,59148.0,0.10091345]
[1726580268557,0.3648,59149.0,59148.0,0.09991345]
[1726580269161,0.3608,59149.0,59148.0,0.09991345]
[1726580269359,0.3608,59149.0,59148.0,0.10491345]
[1726580270669,0.3608,59149.0,59148.0,0.18944245]
[1726580270965,0.3608,59156.0,59155.0,0.084519]
[1726580271166,0.7216,59156.0,59155.0,0.084519]
[1726580271564,0.806118,59156.0,59155.0,0.084519]
[1726580271965,0.084522,59153.0,59152.0,0.00253568]
[1726580272163,0.084922,59153.0,59152.0,0.00253568]
[1726580272472,0.0004,59153.0,59152.0,0.08705868]
[1726580274167,0.084922,59153.0,59152.0,0.08705868]
[1726580274371,0.0004,59153.0,59152.0,0.08705868]
[1726580275072,0.0084,59153.0,59152.0,0.08805868]
[1726580275471,0.0004,59153.0,59152.0,0.08705868]
[1726580275672,0.0044,59153.0,59152.0,0.08705868]
[1726580276275,0.0044,59153.0,59152.0,0.17158168]
[1726580276567,0.0044,59153.0,59152.0,1.36326468]
[1726580276568,1e-06,59153.0,59152.0,1.36326468]
[1726580276767,0.3608,59165.0,59164.0,0.253518]
[1726580276966,0.3608,59165.0,59164.0,0.169412]
[1726580277368,0.3608,59174.0,59164.0,1.33748]
[1726580277576,0.6839,59180.0,59173.0,0.0004]
[1726580277577,0.3608,59180.0,59173.0,0.0004]
[1726580277970,0.3608,59180.0,59179.0,0.084885]
[1726580278278,0.445283,59180.0,59179.0,0.084485]
[1726580278572,0.084488,59177.0,59176.0,0.00253465]
[1726580278770,0.314888,59177.0,59176.0,0.00253465]
[1726580278983,0.314888,59177.0,59176.0,0.02238985]
[1726580279174,0.2304,59177.0,59176.0,0.08702365]
[1726580279368,0.0004,59177.0,59176.0,0.08702365]
[1726580279870,0.0004,59177.0,59176.0,0.00253465]
[1726580279871,0.084888,59177.0,59176.0,0.00253465]
[1726580280573,0.084888,59177.0,59173.0,0.0004]
[1726580280574,0.084492,59174.0,59173.0,0.0004]
[1726580280770,0.084892,59174.0,59173.0,0.0004]
[1726580280975,0.445692,59174.0,59173.0,0.0004]
[1726580281880,0.446692,59174.0,59173.0,0.0014]
[1726580283177,0.446692,59174.0,59160.0,0.3608]
[1726580283178,0.591494,59173.0,59148.0,0.3608]
[1726580283380,0.3608,59157.0,59156.0,0.084518]
[1726580283568,0.5908,59157.0,59156.0,0.084518]
[1726580284179,0.3608,59157.0,59156.0,0.084518]
[1726580285065,0.675316,59157.0,59156.0,0.084518]
[1726580285270,0.675316,59157.0,59153.0,0.084522]
[1726580285271,0.084521,59154.0,59153.0,0.084522]
[1726580285474,0.08452,59155.0,59154.0,0.08452]
[1726580285668,0.08452,59155.0,59154.0,0.08492]
[1726580285868,0.3608,59156.0,59155.0,0.084519]
[1726580286265,0.3608,59156.0,59155.0,0.0004]
[1726580286981,0.3608,59156.0,59155.0,0.084919]
[1726580286982,0.445318,59156.0,59155.0,0.084919]
[1726580287175,0.445318,59156.0,59155.0,0.086919]
[1726580287379,0.3608,59156.0,59155.0,0.086919]
[1726580288269,0.3608,59165.0,59164.0,0.084506]
[1726580288469,0.3608,59165.0,59164.0,0.084906]
[1726580289573,0.3608,59165.0,59164.0,0.0014]
[1726580289574,0.678305,59165.0,59164.0,0.0014]
[1726580290173,0.675305,59165.0,59164.0,0.0034]
[1726580290371,0.675305,59165.0,59164.0,0.02269674]
[1726580291187,0.75981,59165.0,59164.0,0.0034]
[1726580292081,0.084509,59162.0,59161.0,0.00253515]
[1726580292384,0.084512,59160.0,59156.0,0.02010227]
[1726580292682,0.084512,59160.0,59154.0,0.08452]
[1726580292683,0.084519,59155.0,59154.0,0.08452]
[1726580292988,0.084919,59155.0,59154.0,0.08452]
[1726580293189,0.084522,59153.0,59152.0,0.02256705]
[1726580293387,0.0004,59155.0,59154.0,0.08452]
[1726580293687,0.084519,59155.0,59154.0,0.0004]
[1726580294280,0.087519,59155.0,59154.0,0.0014]
[1726580294480,0.087519,59155.0,59154.0,0.08592]
[1726580295581,0.003,59155.0,59154.0,0.08592]
[1726580295777,0.174038,59155.0,59154.0,0.0004]
[1726580295978,0.084542,59139.0,59138.0,0.00253606]
[1726580296179,0.3616,59139.0,59138.0,0.00253606]
[1726580296583,0.446142,59139.0,59138.0,0.10659724]
[1726580296783,0.446142,59139.0,59138.0,0.00253606]
[1726580296978,0.446142,59139.0,59138.0,0.02236549]
[1726580297179,0.530684,59139.0,59138.0,0.00253606]
[1726580297684,0.446142,59139.0,59138.0,0.00253606]
[1726580297988,0.446142,59139.0,59138.0,0.02238322]
[1726580298981,0.446142,59139.0,59117.0,0.494172]
[1726580298982,0.084556,59130.0,59129.0,0.084556]
[1726580299184,0.445356,59130.0,59129.0,0.084556]
[1726580299391,0.446156,59130.0,59129.0,0.084556]
[1726580299585,0.50683341,59130.0,59129.0,0.084556]
[1726580299979,0.42227741,59130.0,59129.0,0.084556]
[1726580300289,0.084526,59151.0,59129.0,0.084556]
[1726580300290,0.3608,59142.0,59141.0,0.084539]
[1726580300892,0.3608,59152.0,59151.0,0.084525]
[1726580301084,0.3608,59158.0,59157.0,0.084516]
[1726580301791,0.3608,59165.0,59157.0,1.33712]
[1726580301979,0.3608,59171.0,59169.0,0.084498]
[1726580302288,0.3608,59171.0,59170.0,0.084498]
[1726580303589,0.3608,59171.0,59170.0,0.1040607]
[1726580303786,0.3658,59171.0,59170.0,0.1040607]
[1726580304096,0.3658,59171.0,59163.0,0.00253535]
[1726580304097,0.084502,59168.0,59163.0,0.00253535]
[1726580304280,0.676106,59164.0,59163.0,0.02246466]
[1726580304480,0.676106,59164.0,59163.0,0.00253535]
[1726580304481,0.73673941,59164.0,59163.0,0.00253535]
[1726580305079,0.084519,59155.0,59150.0,0.084526]
[1726580305285,0.23,59151.0,59150.0,0.084526]
[1726580305484,0.2308,59151.0,59148.0,0.00253601]
[1726580305684,0.0008,59149.0,59148.0,0.02206483]
[1726580305883,0.42143341,59150.0,59148.0,0.00253601]
[1726580306182,0.084528,59149.0,59148.0,0.00253601]
[1726580306498,0.56783341,59149.0,59130.0,0.0496]
[1726580306685,0.085342,59139.0,59134.0,0.01964896]
[1726580307079,0.085342,59139.0,59135.0,0.084547]
[1726580307584,0.14597541,59139.0,59135.0,0.084547]
[1726580307902,0.14597541,59139.0,59134.0,0.01964896]
[1726580308488,0.14597541,59139.0,59135.0,0.084547]
[1726580308689,0.06143341,59139.0,59134.0,0.01964896]
[1726580308886,0.0008,59139.0,59138.0,0.08707902]
[1726580309395,0.084504,59166.0,59138.0,0.08707902]
[1726580309396,0.3608,59148.0,59138.0,1.11381602]
[1726580309579,0.06066011,59154.0,59147.0,0.0004]
[1726580309780,0.06066011,59154.0,59150.0,0.084926]
[1726580310081,0.06066011,59154.0,59150.0,0.084526]
[1726580310382,0.06066011,59154.0,59150.0,1.191726]
[1726580310684,0.06066011,59154.0,59150.0,1.1072]
[1726580310994,0.3608,59155.0,59154.0,0.08452]
[1726580311190,0.3608,59155.0,59154.0,0.08492]
[1726580311695,0.3608,59155.0,59154.0,0.0004]
[1726580312288,0.3608,59155.0,59154.0,0.08492]
[1726580312491,0.0606508,59155.0,59154.0,0.0004]
[1726580312681,0.0606508,59159.0,59158.0,0.084514]
[1726580312884,0.3608,59160.0,59158.0,0.084914]
[1726580313086,0.445313,59160.0,59159.0,0.0004]
[1726580313287,0.445313,59160.0,59158.0,0.084915]
[1726580313481,0.084913,59159.0,59158.0,0.0004]
[1726580313687,0.1455638,59159.0,59158.0,0.0004]
[1726580315996,0.2330768,59159.0,59158.0,0.0004]
[1726580316502,0.2300768,59159.0,59158.0,0.0004]
[1726580316690,0.2380768,59159.0,59158.0,0.0014]
[1726580316997,0.1535638,59159.0,59158.0,0.0014]
[1726580317297,0.1515638,59159.0,59158.0,0.0014]
[1726580318291,0.1455638,59159.0,59158.0,0.0004]
[1726580318496,0.1555638,59159.0,59158.0,0.0014]
[1726580318792,0.6008768,59159.0,59158.0,0.00126001]
[1726580318994,0.6853898,59159.0,59158.0,0.00126001]
[1726580319198,0.169058,59148.0,59142.0,0.0016]
[1726580319398,0.169072,59143.0,59142.0,0.0016]
[1726580319697,0.759872,59143.0,59142.0,0.0016]
[1726580319889,0.7359868,59143.0,59142.0,0.0016]
[1726580320393,0.5059868,59143.0,59142.0,0.0016]
[1726580320696,0.5059868,59143.0,59142.0,0.0046]
[1726580321392,0.4224508,59143.0,59142.0,0.086138]
[1726580321586,0.3618,59143.0,59142.0,0.086138]
[1726580321787,0.001,59143.0,59142.0,1.277916]
[1726580321997,0.0004,59148.0,59147.0,0.08453]
[1726580322202,0.06065453,59153.0,59152.0,0.084523]
[1726580322388,0.3608,59161.0,59160.0,0.084512]
[1726580322594,0.3608,59161.0,59160.0,0.084912]
[1726580323490,0.4126989,59161.0,59160.0,0.084912]
[1726580323894,0.4136989,59161.0,59160.0,0.084912]
[1726580324490,0.4126989,59161.0,59160.0,0.089912]
[1726580325498,0.0518989,59161.0,59160.0,0.089912]
[1726580325699,0.0518989,59161.0,59160.0,0.0054]
[1726580325903,0.11254184,59161.0,59160.0,0.089912]
[1726580326309,0.11254184,59161.0,59160.0,0.084912]
[1726580326502,0.06464294,59161.0,59160.0,0.084912]
[1726580327109,0.06764294,59161.0,59160.0,0.085912]
[1726580327603,0.06064294,59162.0,59161.0,0.08451]
[1726580327799,0.06064294,59162.0,59161.0,0.08491]
[1726580329115,0.3608,59163.0,59162.0,0.084509]
[1726580329300,0.3608,59163.0,59162.0,0.084909]
[1726580329909,0.445308,59163.0,59162.0,0.084909]
[1726580330195,0.50595214,59163.0,59162.0,0.084909]
[1726580330610,0.83046014,59163.0,59162.0,0.0014]
[1726580330904,0.51595214,59163.0,59162.0,0.0014]
[1726580331113,0.51595214,59163.0,59162.0,0.085909]
[1726580331298,0.51595214,59163.0,59162.0,0.0014]
[1726580331514,0.74595214,59163.0,59162.0,0.0014]
[1726580331999,0.38515214,59163.0,59162.0,0.0014]
[1726580332204,0.3708,59163.0,59162.0,0.085909]
[1726580332609,0.3708,59163.0,59162.0,0.254927]
[1726580332610,0.01,59163.0,59162.0,0.254927]
[1726580332802,0.3608,59175.0,59174.0,0.168984]
[1726580332803,0.06064414,59175.0,59174.0,0.168984]
[1726580333110,0.2666201,59184.0,59183.0,0.084479]
[1726580333409,0.31850049,59184.0,59183.0,0.084879]
[1726580333709,0.05188039,59184.0,59183.0,0.084879]
[1726580333897,0.13635839,59184.0,59183.0,0.084879]
[1726580334309,0.14635839,59184.0,59183.0,0.085879]
[1726580335413,0.14635839,59184.0,59183.0,0.0014]
[1726580335811,0.06188039,59184.0,59183.0,0.085879]
[1726580336519,0.05188039,59185.0,59183.0,1.422759]
[1726580336717,0.06064414,59198.0,59197.0,0.084459]
[1726580337018,0.06064414,59206.0,59202.0,0.08445]
[1726580337214,0.10907242,59207.0,59205.0,0.3612]
[1726580337407,0.06064414,59210.0,59206.0,0.0004]
[1726580337603,0.314435,59214.0,59209.0,0.0004]
[1726580337806,0.3608,59211.0,59207.0,0.084445]
[1726580338007,0.0004,59208.0,59207.0,0.10767528]
[1726580338413,0.0004,59208.0,59207.0,0.02323028]
[1726580338615,0.0004,59208.0,59205.0,0.0004]
[1726580339111,0.0004,59206.0,59205.0,0.0004]
[1726580339316,0.0004,59206.0,59205.0,0.02300016]
[1726580339506,0.0004,59206.0,59205.0,1.21416816]
[1726580340416,0.0004,59206.0,59205.0,1.21516816]
[1726580340802,0.06064414,59217.0,59216.0,0.084432]
[1726580341119,0.3608,59224.0,59221.0,0.084424]
[1726580341120,0.06064414,59223.0,59221.0,0.084424]
[1726580341304,0.3608,59224.0,59223.0,0.084422]
[1726580341618,0.5908,59224.0,59222.0,0.0004]
[1726580341808,0.06058112,59223.0,59222.0,0.0004]
[1726580342012,0.14540312,59223.0,59222.0,0.0004]
[1726580342810,0.22942512,59223.0,59222.0,0.0004]
[1726580343118,0.14500312,59223.0,59222.0,0.0004]
[1726580343316,1.33598512,59223.0,59222.0,0.0004]
[1726580343510,1.33598512,59223.0,59216.0,0.001]
[1726580343511,0.08443,59217.0,59216.0,0.001]
[1726580343818,0.44563,59217.0,59216.0,0.001]
[1726580344210,0.084437,59213.0,59208.0,0.084443]
[1726580344410,0.3612,59217.0,59208.0,0.084443]
[1726580344411,0.084439,59211.0,59208.0,0.084443]
[1726580344732,0.0004,59209.0,59208.0,0.084443]
[1726580346827,0.084446,59206.0,59205.0,0.02226428]
[1726580347012,0.084446,59206.0,59204.0,0.084449]
[1726580347318,0.0004,59205.0,59204.0,0.084449]
[1726580347526,0.0004,59205.0,59204.0,0.675249]
[1726580347827,0.0004,59205.0,59204.0,1.781969]
[1726580348020,0.0004,59205.0,59204.0,1.866418]
[1726580348220,0.0004,59205.0,59204.0,1.950867]
[1726580348409,0.084422,59223.0,59222.0,0.084422]
[1726580348615,0.3608,59225.0,59222.0,0.0004]
[1726580348914,0.084422,59223.0,59222.0,0.0004]
[1726580350427,0.084422,59223.0,59222.0,0.02466149]
[1726580350626,0.084422,59223.0,59222.0,0.0014]
[1726580350627,0.759644,59223.0,59222.0,0.0014]
[1726580350826,0.675222,59223.0,59222.0,0.0014]
[1726580351124,0.445222,59223.0,59222.0,0.0014]
[1726580351815,0.529644,59223.0,59222.0,0.0014]
[1726580352217,0.445222,59223.0,59222.0,0.0014]
[1726580352423,0.529644,59223.0,59222.0,0.0014]
[1726580352724,0.59023254,59223.0,59222.0,0.0014]
[1726580353122,0.67465454,59223.0,59222.0,0.0014]
[1726580353322,0.67465454,59223.0,59202.0,0.3608]
[1726580353323,0.084431,59217.0,59202.0,0.3608]
[1726580353630,0.3608,59211.0,59210.0,0.08444]
[1726580354126,0.06058854,59213.0,59212.0,0.084438]
[1726580354326,0.3608,59216.0,59215.0,0.084433]
[1726580354525,0.3608,59216.0,59215.0,0.084833]
[1726580354831,0.3608,59216.0,59215.0,0.084433]
[1726580355027,0.42138928,59216.0,59215.0,0.084433]
[1726580355227,0.50582128,59216.0,59215.0,0.084433]
[1726580355923,0.42138928,59216.0,59215.0,0.084433]
[1726580356124,0.3608,59216.0,59215.0,0.06528129]
[1726580356527,0.42138928,59216.0,59215.0,0.06528129]
[1726580357530,0.3608,59216.0,59215.0,0.06528129]
[1726580357922,0.3608,59216.0,59212.0,0.0004]
[1726580357923,0.084436,59213.0,59212.0,0.0004]
[1726580358122,0.084836,59213.0,59212.0,0.084838]
[1726580359130,0.314836,59213.0,59212.0,0.0004]
[1726580359331,0.0004,59213.0,59212.0,0.084838]
[1726580359831,0.084836,59213.0,59212.0,0.084838]
[1726580360224,0.0004,59213.0,59212.0,0.084838]
[1726580361428,0.399272,59213.0,59212.0,0.0004]
[1726580361932,1.951148,59213.0,59212.0,0.0004]
[1726580362234,0.084459,59197.0,59196.0,0.0224368]
[1726580362434,0.084464,59194.0,59190.0,0.3608]
[1726580362636,0.0004,59197.0,59190.0,0.3608]
[1726580362933,0.0004,59197.0,59196.0,0.08486]
[1726580363531,0.0004,59197.0,59196.0,0.08446]
[1726580364639,0.314859,59197.0,59196.0,0.02269372]
[1726580364837,0.29100811,59197.0,59193.0,0.084465]
[1726580365042,0.084863,59194.0,59193.0,0.084465]
[1726580365541,0.0004,59194.0,59189.0,0.084469]
[1726580365730,0.0004,59194.0,59185.0,0.048]
[1726580365731,0.0004,59190.0,59185.0,0.048]
[1726580365933,0.0004,59186.0,59185.0,0.132476]
[1726580366139,0.0004,59190.0,59189.0,0.08447]
[1726580366339,0.0004,59190.0,59189.0,0.08487]
[1726580366635,0.0004,59190.0,59189.0,0.53014]
[1726580366840,0.06100811,59197.0,59196.0,0.08446]
[1726580367037,0.0004,59197.0,59196.0,1.21458]
[1726580367239,0.06059898,59211.0,59210.0,0.08444]
[1726580367442,0.3608,59213.0,59205.0,0.23]
[1726580367635,0.3608,59213.0,59212.0,0.084838]
[1726580367838,0.3608,59213.0,59212.0,0.084438]
[1726580368543,0.445236,59213.0,59212.0,0.10727305]
[1726580368733,0.50583123,59213.0,59212.0,0.10727305]
[1726580369138,0.50583123,59213.0,59212.0,0.02283505]
[1726580369341,0.084446,59206.0,59203.0,0.084449]
[1726580369643,0.084446,59206.0,59191.0,0.23]
[1726580369644,0.0004,59204.0,59195.0,0.084461]
[1726580369943,0.0004,59204.0,59203.0,0.08445]
[1726580370333,0.084449,59205.0,59204.0,0.084449]
[1726580370543,0.084449,59205.0,59204.0,0.084849]
[1726580370732,0.06059523,59206.0,59205.0,0.084448]
[1726580370934,0.3608,59207.0,59205.0,0.0004]
[1726580371133,0.50584226,59207.0,59206.0,0.0004]
[1726580371344,0.084446,59206.0,59205.0,0.0004]
[1726580371543,0.14504326,59206.0,59205.0,0.0004]
[1726580371744,0.14504326,59206.0,59203.0,0.003]
[1726580371745,0.06099726,59206.0,59194.0,0.084462]
[1726580372042,0.084862,59195.0,59194.0,0.084462]
[1726580372249,0.084462,59195.0,59194.0,0.084462]
[1726580372432,0.084462,59195.0,59194.0,0.10687515]
[1726580372635,0.06059726,59201.0,59200.0,0.084455]
[1726580372848,0.3608,59202.0,59201.0,0.084453]
[1726580373033,0.0004,59206.0,59201.0,0.084453]
[1726580373034,0.0004,59206.0,59205.0,0.084448]
[1726580373235,0.3612,59206.0,59205.0,0.084848]
[1726580373437,0.3612,59206.0,59205.0,0.084448]
[1726580373631,0.445646,59206.0,59205.0,0.085448]
[1726580373950,0.50624624,59206.0,59205.0,0.001]
[1726580374134,0.084449,59204.0,59203.0,0.08445]
[1726580374331,0.084849,59204.0,59203.0,0.08445]
[1726580375446,0.0004,59204.0,59203.0,0.08445]
[1726580377141,0.0004,59204.0,59203.0,0.10700907]
[1726580377441,0.0004,59204.0,59203.0,0.10800907]
[1726580378047,0.0004,59204.0,59203.0,0.10700907]
[1726580381033,0.0004,59204.0,59203.0,0.10900907]
[1726580381648,0.0004,59204.0,59203.0,0.10700907]
[1726580382240,0.084849,59204.0,59203.0,0.10700907]
[1726580382441,0.169298,59204.0,59203.0,0.02255907]
[1726580382644,0.06099836,59204.0,59203.0,0.08445]
[1726580382840,0.0004,59204.0,59203.0,0.08445]
[1726580384842,0.445649,59204.0,59203.0,0.08445]
[1726580385344,0.50624736,59204.0,59203.0,0.08445]
[1726580385550,0.42179836,59204.0,59203.0,0.08445]
[1726580385847,0.42179836,59204.0,59203.0,0.10756177]
[1726580386047,0.50624736,59204.0,59203.0,0.10756177]
[1726580386253,0.50624736,59204.0,59203.0,0.02311177]
[1726580386558,0.084459,59198.0,59192.0,0.3608]
[1726580386740,0.084459,59198.0,59197.0,0.084459]
[1726580386939,0.14505736,59198.0,59197.0,0.084459]
[1726580387742,0.084465,59195.0,59194.0,0.084463]
[1726580387944,0.084865,59195.0,59194.0,0.084463]
[1726580389643,0.14546336,59195.0,59192.0,0.02322837]
[1726580389851,0.0004,59193.0,59192.0,0.084466]
[1726580390047,0.06099836,59193.0,59192.0,0.084466]
[1726580390247,1.52863836,59193.0,59187.0,0.02217543]
[1726580390445,1.52863836,59193.0,59173.0,0.0036]
[1726580390446,0.084492,59174.0,59173.0,0.0036]
[1726580390757,0.084492,59174.0,59154.0,0.31452]
[1726580390758,0.084495,59172.0,59154.0,0.31452]
[1726580391048,0.0008,59161.0,59160.0,0.445312]
[1726580391347,0.0008,59161.0,59160.0,0.46772167]
[1726580391569,0.0008,59161.0,59160.0,1.57480167]
[1726580391847,0.0008,59161.0,59160.0,0.46772167]
[1726580392245,0.3616,59161.0,59160.0,0.02240967]
[1726580392545,0.44611,59161.0,59160.0,0.008]
[1726580392947,0.50670836,59161.0,59160.0,0.008]
[1726580394241,0.50670836,59161.0,59160.0,0.03024494]
[1726580395147,0.42219836,59161.0,59160.0,0.02324494]
[1726580395347,0.42219836,59161.0,59160.0,0.10775694]
[1726580395943,0.06139836,59161.0,59160.0,0.69855694]
[1726580396145,0.0008,59161.0,59160.0,1.20563694]
[1726580396450,0.0008,59161.0,59160.0,0.84383694]
[1726580396947,0.0008,59161.0,59160.0,0.33675694]
[1726580397149,0.0008,59161.0,59160.0,0.10675694]
[1726580398747,0.0008,59161.0,59160.0,0.10775694]
[1726580399041,0.0008,59161.0,59160.0,0.42226894]
[1726580399242,0.3608,59177.0,59176.0,0.084489]
[1726580399441,0.3608,59177.0,59172.0,0.23]
[1726580399442,0.084493,59174.0,59172.0,0.084494]
[1726580399755,0.084489,59176.0,59175.0,0.08449]
[1726580399956,0.3608,59177.0,59165.0,0.3608]
[1726580400145,0.0008,59166.0,59165.0,0.3608]
[1726580400452,0.0008,59166.0,59165.0,0.55240168]
[1726580400648,0.3608,59181.0,59180.0,0.084483]
[1726580401039,0.3608,59181.0,59176.0,0.084488]
[1726580401246,0.0008,59177.0,59165.0,0.38563168]
[1726580401454,0.23,59171.0,59165.0,0.02259168]
[1726580401639,0.084507,59164.0,59163.0,0.084506]
[1726580401838,0.084507,59164.0,59159.0,0.3608]
[1726580401839,0.23,59166.0,59162.0,0.02230493]
[1726580402043,0.0008,59163.0,59154.0,0.0475]
[1726580402341,0.0008,59163.0,59148.0,0.64134]
[1726580402342,0.08451,59161.0,59158.0,0.084514]
[1726580402547,0.08451,59161.0,59148.0,0.38355639]
[1726580402548,0.3608,59161.0,59148.0,0.02275639]
[1726580402756,0.5916,59149.0,59132.0,0.0582]
[1726580402954,0.5916,59149.0,59138.0,0.084543]
[1726580402955,0.3608,59139.0,59138.0,0.084543]
[1726580403453,0.3608,59139.0,59133.0,0.08455]
[1726580403654,0.3608,59139.0,59137.0,0.084544]
[1726580403851,0.3608,59139.0,59132.0,0.07038836]
[1726580404359,0.3608,59139.0,59136.0,0.084545]
[1726580404564,0.0008,59133.0,59131.0,0.084553]
[1726580404754,0.0008,59133.0,59132.0,0.084552]